[Event "*** SCC Grand Prix: Titled Tuesday Blitz"]
[Site "Chess.com"]
[Date "2020.06.09"]
[Round "9"]
[White "Evgeny81"]
[Black "GigaQuparadze"]
[Result "1-0"]
[WhiteElo "2775"]
[BlackElo "2828"]
[TimeControl "180+1"]
[EndTime "10:44:58 PDT"]
[Termination "Evgeny81 won by checkmate"]

1. d4 {[%clk 0:03:00.9]} 1... e6 {[%clk 0:02:57.2]} 2. c4 {[%clk 0:02:59.8]}
2... Nf6 {[%clk 0:02:56.3]} 3. Nf3 {[%clk 0:02:59.4]} 3... b6 {[%clk 0:02:54]}
4. g3 {[%clk 0:02:58.9]} 4... Ba6 {[%clk 0:02:53.4]} 5. b3 {[%clk 0:02:57.6]}
5... Bb4+ {[%clk 0:02:50.6]} 6. Bd2 {[%clk 0:02:57.4]} 6... Be7 {[%clk
0:02:50.2]} 7. Bg2 {[%clk 0:02:57.7]} 7... c6 {[%clk 0:02:49.7]} 8. Ne5 {[%clk
0:02:55.1]} 8... d5 {[%clk 0:02:50.1]} 9. Bc3 {[%clk 0:02:51.1]} 9... Nfd7
{[%clk 0:02:49.5]} 10. Nxd7 {[%clk 0:02:49.8]} 10... Nxd7 {[%clk 0:02:50.4]} 11.
Nd2 {[%clk 0:02:50.3]} 11... O-O {[%clk 0:02:49.9]} 12. O-O {[%clk 0:02:50.4]}
12... Rc8 {[%clk 0:02:49.7]} 13. Re1 {[%clk 0:02:48.6]} 13... b5 {[%clk
0:02:48.3]} 14. c5 {[%clk 0:02:44.4]} 14... e5 {[%clk 0:02:48.5]} 15. e3 {[%clk
0:02:29.1]} 15... e4 {[%clk 0:02:47.9]} 16. a4 {[%clk 0:02:24.8]} 16... Qc7
{[%clk 0:02:41.5]} 17. Bf1 {[%clk 0:02:16.9]} 17... Rb8 {[%clk 0:02:39.5]} 18.
axb5 {[%clk 0:02:08.4]} 18... Bxb5 {[%clk 0:02:40.4]} 19. Bxb5 {[%clk
0:02:07.5]} 19... Rxb5 {[%clk 0:02:41.3]} 20. Ra6 {[%clk 0:02:06.1]} 20... Nb8
{[%clk 0:02:40.9]} 21. Ra4 {[%clk 0:02:04.2]} 21... f5 {[%clk 0:02:40.3]} 22.
Qe2 {[%clk 0:01:52.7]} 22... Bd8 {[%clk 0:02:37.2]} 23. Rea1 {[%clk 0:01:51.5]}
23... a6 {[%clk 0:02:37.1]} 24. Ba5 {[%clk 0:01:47.2]} 24... Qd7 {[%clk
0:02:36.3]} 25. Bxd8 {[%clk 0:01:46.8]} 25... Rxd8 {[%clk 0:02:37.1]} 26. Qd1
{[%clk 0:01:23.3]} 26... Rf8 {[%clk 0:02:34.3]} 27. Nb1 {[%clk 0:01:22]} 27...
Qb7 {[%clk 0:02:31.5]} 28. R1a3 {[%clk 0:01:11.5]} 28... Rb4 {[%clk 0:02:30.8]}
29. Nc3 {[%clk 0:01:07.7]} 29... Rf7 {[%clk 0:02:23.4]} 30. Qc2 {[%clk
0:01:06.9]} 30... h6 {[%clk 0:02:20.9]} 31. Rxb4 {[%clk 0:01:06.6]} 31... Qxb4
{[%clk 0:02:19.9]} 32. Ra4 {[%clk 0:01:07.5]} 32... Qb7 {[%clk 0:02:19.8]} 33.
Na2 {[%clk 0:01:05.7]} 33... g5 {[%clk 0:02:09.6]} 34. Rb4 {[%clk 0:01:05.3]}
34... Qc7 {[%clk 0:02:08.2]} 35. Qe2 {[%clk 0:00:59.1]} 35... f4 {[%clk
0:02:07.3]} 36. exf4 {[%clk 0:00:48.9]} 36... gxf4 {[%clk 0:02:08.2]} 37. Qg4+
{[%clk 0:00:49]} 37... Kh7 {[%clk 0:02:07.4]} 38. Qe6 {[%clk 0:00:47.3]} 38...
e3 {[%clk 0:02:01.4]} 39. Rxb8 {[%clk 0:00:43.7]} 39... e2 {[%clk 0:01:43.9]}
40. Re8 {[%clk 0:00:36.1]} 40... f3 {[%clk 0:01:43.7]} 41. Nc1 {[%clk
0:00:30.3]} 41... Kg7 {[%clk 0:01:43.4]} 42. Nxe2 {[%clk 0:00:28.8]} 42... fxe2
{[%clk 0:01:44.3]} 43. Qg4+ {[%clk 0:00:24.9]} 43... Kf6 {[%clk 0:01:44.1]} 44.
Re6# {[%clk 0:00:24.5]} 1-0

[Event "*** SCC Grand Prix: Titled Tuesday Blitz"]
[Site "Chess.com"]
[Date "2020.06.09"]
[Round "9"]
[White "Margarita2907"]
[Black "Saloni1299"]
[Result "0-1"]
[WhiteElo "2056"]
[BlackElo "2248"]
[TimeControl "180+1"]
[EndTime "10:44:59 PDT"]
[Termination "Saloni1299 won by resignation"]

1. e4 {[%clk 0:03:00.9]} 1... e6 {[%clk 0:02:59.1]} 2. d4 {[%clk 0:02:59.5]}
2... d5 {[%clk 0:02:59.3]} 3. Nd2 {[%clk 0:02:59.9]} 3... Nf6 {[%clk 0:02:58.7]}
4. e5 {[%clk 0:02:58.3]} 4... Nfd7 {[%clk 0:02:57.4]} 5. Bd3 {[%clk 0:02:57.7]}
5... c5 {[%clk 0:02:57.5]} 6. c3 {[%clk 0:02:56.9]} 6... Nc6 {[%clk 0:02:58.1]}
7. Ne2 {[%clk 0:02:55.1]} 7... cxd4 {[%clk 0:02:58]} 8. cxd4 {[%clk 0:02:53.6]}
8... f6 {[%clk 0:02:58.2]} 9. exf6 {[%clk 0:02:50.6]} 9... Nxf6 {[%clk
0:02:59.1]} 10. O-O {[%clk 0:02:48.3]} 10... Bd6 {[%clk 0:02:59.6]} 11. Nf3
{[%clk 0:02:41.5]} 11... Qc7 {[%clk 0:02:59.5]} 12. Bg5 {[%clk 0:02:18.3]} 12...
O-O {[%clk 0:02:57.7]} 13. Rc1 {[%clk 0:02:13.6]} 13... Nh5 {[%clk 0:02:49.1]}
14. Qd2 {[%clk 0:01:25.4]} 14... Bd7 {[%clk 0:02:25.1]} 15. Qc2 {[%clk
0:00:46.6]} 15... g6 {[%clk 0:02:06]} 16. Bh6 {[%clk 0:00:22.5]} 16... Ng7
{[%clk 0:01:46.8]} 17. Bxg6 {[%clk 0:00:14.1]} 17... hxg6 {[%clk 0:01:47.7]} 18.
Qxg6 {[%clk 0:00:13.7]} 18... Be8 {[%clk 0:01:46.3]} 19. Qg4 {[%clk 0:00:09.2]}
19... Bh5 {[%clk 0:01:44]} 20. Qg5 {[%clk 0:00:07.6]} 20... Bxf3 {[%clk
0:01:43.2]} 21. gxf3 {[%clk 0:00:07.7]} 21... Rf5 {[%clk 0:01:38.6]} 22. Qg6
{[%clk 0:00:07.1]} 22... Raf8 {[%clk 0:01:24.6]} 23. Kh1 {[%clk 0:00:05.2]}
23... R8f6 {[%clk 0:01:21.5]} 24. Qg4 {[%clk 0:00:04.2]} 24... Rxh6 {[%clk
0:01:21.3]} 0-1

[Event "*** SCC Grand Prix: Titled Tuesday Blitz"]
[Site "Chess.com"]
[Date "2020.06.09"]
[Round "9"]
[White "Alexander_Moskalenko"]
[Black "GHANDEEVAM2003"]
[Result "1-0"]
[WhiteElo "2846"]
[BlackElo "2969"]
[TimeControl "180+1"]
[EndTime "10:45:00 PDT"]
[Termination "Alexander_Moskalenko won by resignation"]

1. d4 {[%clk 0:03:00.9]} 1... d5 {[%clk 0:02:58.6]} 2. c4 {[%clk 0:02:58.7]}
2... e6 {[%clk 0:02:59]} 3. Nf3 {[%clk 0:02:55.5]} 3... Nf6 {[%clk 0:02:58.6]}
4. g3 {[%clk 0:02:55.9]} 4... dxc4 {[%clk 0:02:57.8]} 5. Bg2 {[%clk 0:02:54.6]}
5... Bd7 {[%clk 0:02:58.2]} 6. Ne5 {[%clk 0:02:52.1]} 6... Bc6 {[%clk
0:02:58.7]} 7. Nxc6 {[%clk 0:02:52.7]} 7... Nxc6 {[%clk 0:02:59.6]} 8. e3 {[%clk
0:02:53.6]} 8... Nd5 {[%clk 0:02:57.6]} 9. O-O {[%clk 0:02:45]} 9... Qd7 {[%clk
0:02:56.6]} 10. Nd2 {[%clk 0:02:45.5]} 10... h5 {[%clk 0:02:40.3]} 11. Nxc4
{[%clk 0:02:40.8]} 11... f5 {[%clk 0:02:40.8]} 12. Qb3 {[%clk 0:02:29.1]} 12...
O-O-O {[%clk 0:02:37.2]} 13. Bd2 {[%clk 0:02:28.5]} 13... h4 {[%clk 0:02:33.8]}
14. Rfc1 {[%clk 0:02:29.1]} 14... Kb8 {[%clk 0:02:20.1]} 15. Qa4 {[%clk
0:02:21.2]} 15... hxg3 {[%clk 0:02:11]} 16. hxg3 {[%clk 0:02:20.4]} 16... g5
{[%clk 0:02:10.3]} 17. b4 {[%clk 0:01:53.4]} 17... Qh7 {[%clk 0:01:44.1]} 18. b5
{[%clk 0:01:46]} 18... Nce7 {[%clk 0:01:40.9]} 19. Na5 {[%clk 0:01:39.8]} 19...
f4 {[%clk 0:01:27.4]} 20. Nxb7 {[%clk 0:01:17.5]} 20... fxe3 {[%clk 0:00:42.5]}
21. Nxd8 {[%clk 0:01:11.1]} 21... exd2 {[%clk 0:00:31.6]} 22. Qa6 {[%clk
0:01:02.2]} 22... dxc1=Q+ {[%clk 0:00:20.5]} 23. Rxc1 {[%clk 0:01:01.3]} 1-0

[Event "*** SCC Grand Prix: Titled Tuesday Blitz"]
[Site "Chess.com"]
[Date "2020.06.09"]
[Round "9"]
[White "MateSchmate"]
[Black "andriipalchuk"]
[Result "0-1"]
[WhiteElo "2425"]
[BlackElo "2297"]
[TimeControl "180+1"]
[EndTime "10:45:02 PDT"]
[Termination "andriipalchuk won by checkmate"]

1. e4 {[%clk 0:03:00.9]} 1... c6 {[%clk 0:02:59.5]} 2. Bc4 {[%clk 0:03:00.4]}
2... d5 {[%clk 0:03:00.4]} 3. Bb3 {[%clk 0:03:01.3]} 3... dxe4 {[%clk
0:02:59.8]} 4. Qh5 {[%clk 0:03:01.4]} 4... g6 {[%clk 0:02:55.9]} 5. Qh4 {[%clk
0:03:00.9]} 5... Nf6 {[%clk 0:02:54.9]} 6. Nc3 {[%clk 0:03:01.4]} 6... Bg7
{[%clk 0:02:53.6]} 7. f3 {[%clk 0:03:00.9]} 7... e3 {[%clk 0:02:38.2]} 8. dxe3
{[%clk 0:03:00.1]} 8... Nbd7 {[%clk 0:02:31.8]} 9. e4 {[%clk 0:02:54.6]} 9...
Nc5 {[%clk 0:02:28.9]} 10. Be3 {[%clk 0:02:54.7]} 10... Nxb3 {[%clk 0:02:27]}
11. axb3 {[%clk 0:02:55.6]} 11... O-O {[%clk 0:02:25.8]} 12. Nge2 {[%clk
0:02:46.7]} 12... b6 {[%clk 0:02:07.4]} 13. O-O {[%clk 0:02:45.5]} 13... Qc7
{[%clk 0:02:00.7]} 14. Rfd1 {[%clk 0:02:44]} 14... Bd7 {[%clk 0:01:19.9]} 15.
Qg3 {[%clk 0:02:40.5]} 15... Qxg3 {[%clk 0:01:18.5]} 16. hxg3 {[%clk 0:02:41.4]}
16... Rfd8 {[%clk 0:01:16.4]} 17. Kf2 {[%clk 0:02:41.3]} 17... e5 {[%clk
0:01:14]} 18. g4 {[%clk 0:02:37.4]} 18... Bf8 {[%clk 0:00:59.7]} 19. g5 {[%clk
0:02:34.6]} 19... Ne8 {[%clk 0:00:56.7]} 20. Bxb6 {[%clk 0:02:28.9]} 20... axb6
{[%clk 0:00:55]} 21. Rxa8 {[%clk 0:02:29.1]} 21... Rxa8 {[%clk 0:00:55.9]} 22.
Rxd7 {[%clk 0:02:29]} 22... Bc5+ {[%clk 0:00:56.2]} 23. Kg3 {[%clk 0:02:29.1]}
23... Ng7 {[%clk 0:00:55.2]} 24. f4 {[%clk 0:02:26]} 24... exf4+ {[%clk
0:00:52.8]} 25. Nxf4 {[%clk 0:02:25.7]} 25... Re8 {[%clk 0:00:48.8]} 26. Kf3
{[%clk 0:02:25.1]} 26... Be7 {[%clk 0:00:43.1]} 27. Na4 {[%clk 0:02:22.8]} 27...
b5 {[%clk 0:00:38.1]} 28. Nc3 {[%clk 0:02:15.1]} 28... Bxg5 {[%clk 0:00:38.4]}
29. Rc7 {[%clk 0:02:14.7]} 29... Bxf4 {[%clk 0:00:38]} 30. Rxc6 {[%clk
0:02:14.4]} 30... Ne6 {[%clk 0:00:38]} 31. Nd5 {[%clk 0:02:13.9]} 31... Nd4+
{[%clk 0:00:37.8]} 32. Kxf4 {[%clk 0:02:13.6]} 32... Nxc6 {[%clk 0:00:37.9]} 33.
Nf6+ {[%clk 0:02:13.6]} 33... Kf8 {[%clk 0:00:38.5]} 34. Nxe8 {[%clk 0:02:14.5]}
34... Kxe8 {[%clk 0:00:39.1]} 35. c4 {[%clk 0:02:14.5]} 35... b4 {[%clk
0:00:37.2]} 36. e5 {[%clk 0:02:13.5]} 36... Ke7 {[%clk 0:00:37.6]} 37. Kg5
{[%clk 0:02:12]} 37... Nxe5 {[%clk 0:00:35.1]} 38. Kh6 {[%clk 0:02:12.9]} 38...
Nd3 {[%clk 0:00:30.9]} 39. Kxh7 {[%clk 0:02:12.7]} 39... Nxb2 {[%clk 0:00:30.9]}
40. Kh6 {[%clk 0:02:12.4]} 40... Nd3 {[%clk 0:00:29]} 41. Kg5 {[%clk 0:02:13.3]}
41... Nc5 {[%clk 0:00:29.3]} 42. Kf4 {[%clk 0:02:14.2]} 42... Nxb3 {[%clk
0:00:29.9]} 43. Ke3 {[%clk 0:02:15.1]} 43... Kd6 {[%clk 0:00:29.9]} 44. Ke4
{[%clk 0:02:13.9]} 44... Kc5 {[%clk 0:00:29]} 45. Ke5 {[%clk 0:02:14.8]} 45...
Kxc4 {[%clk 0:00:27.6]} 46. Kf6 {[%clk 0:02:12.5]} 46... Nd4 {[%clk 0:00:25.9]}
47. Kxf7 {[%clk 0:02:13.4]} 47... g5 {[%clk 0:00:25.4]} 48. Kg6 {[%clk
0:02:14.3]} 48... g4 {[%clk 0:00:25.9]} 49. Kg5 {[%clk 0:02:13.6]} 49... g3
{[%clk 0:00:25.5]} 50. Kg4 {[%clk 0:02:14.5]} 50... Ne2 {[%clk 0:00:25]} 51. Kh5
{[%clk 0:02:15.4]} 51... b3 {[%clk 0:00:25.1]} 52. Kg4 {[%clk 0:02:15]} 52... b2
{[%clk 0:00:25.7]} 53. Kf3 {[%clk 0:02:15.5]} 53... b1=Q {[%clk 0:00:25.3]} 54.
Kg4 {[%clk 0:02:15.5]} 54... Qe4+ {[%clk 0:00:24.5]} 55. Kh3 {[%clk 0:02:16.4]}
55... Nf4+ {[%clk 0:00:24.2]} 56. Kg4 {[%clk 0:02:13.6]} 56... Qxg2 {[%clk
0:00:24.7]} 57. Kf5 {[%clk 0:02:12.3]} 57... Qf3 {[%clk 0:00:23.4]} 58. Kg5
{[%clk 0:02:12]} 58... g2 {[%clk 0:00:24.3]} 59. Kh4 {[%clk 0:02:12.9]} 59...
Qh3+ {[%clk 0:00:22.3]} 60. Kg5 {[%clk 0:02:12.5]} 60... g1=Q+ {[%clk
0:00:22.9]} 61. Kf6 {[%clk 0:02:13.4]} 61... Qg6+ {[%clk 0:00:22.1]} 62. Ke5
{[%clk 0:02:14.3]} 62... Qhf5# {[%clk 0:00:22.1]} 0-1

[Event "*** SCC Grand Prix: Titled Tuesday Blitz"]
[Site "Chess.com"]
[Date "2020.06.09"]
[Round "9"]
[White "Natalya_Buksa"]
[Black "imdvb6307"]
[Result "1-0"]
[WhiteElo "2571"]
[BlackElo "2397"]
[TimeControl "180+1"]
[EndTime "10:45:04 PDT"]
[Termination "Natalya_Buksa won by resignation"]

1. d4 {[%clk 0:03:00.9]} 1... d5 {[%clk 0:02:59.2]} 2. Nc3 {[%clk 0:03:01.3]}
2... Nf6 {[%clk 0:02:53.4]} 3. Bf4 {[%clk 0:03:01.7]} 3... Ne4 {[%clk
0:02:53.9]} 4. Nxe4 {[%clk 0:02:56.6]} 4... dxe4 {[%clk 0:02:53.8]} 5. e3 {[%clk
0:02:57.1]} 5... c6 {[%clk 0:02:44.7]} 6. Ne2 {[%clk 0:02:57]} 6... g5 {[%clk
0:02:38.2]} 7. Be5 {[%clk 0:02:55.7]} 7... f6 {[%clk 0:02:37.1]} 8. Bg3 {[%clk
0:02:55.4]} 8... Bf5 {[%clk 0:02:02.2]} 9. h4 {[%clk 0:02:53.1]} 9... Nd7 {[%clk
0:02:02.3]} 10. hxg5 {[%clk 0:02:44]} 10... fxg5 {[%clk 0:02:01.9]} 11. Nc3
{[%clk 0:02:44.5]} 11... Bg6 {[%clk 0:01:54.3]} 12. Qg4 {[%clk 0:02:34.8]} 12...
Qa5 {[%clk 0:01:53.9]} 13. O-O-O {[%clk 0:02:14.7]} 13... h5 {[%clk 0:01:22.5]}
14. Qe6 {[%clk 0:02:10.6]} 14... Bf5 {[%clk 0:00:55.9]} 15. Qb3 {[%clk
0:01:58.6]} 15... Nb6 {[%clk 0:00:51.3]} 16. Be5 {[%clk 0:01:57.5]} 16... Rh6
{[%clk 0:00:47.5]} 17. Be2 {[%clk 0:01:57.3]} 17... h4 {[%clk 0:00:46.2]} 18.
Qg8 {[%clk 0:01:35.6]} 18... Rg6 {[%clk 0:00:43.8]} 19. Bh5 {[%clk 0:01:34.5]}
19... O-O-O {[%clk 0:00:32.8]} 20. Bxg6 {[%clk 0:01:34.6]} 20... Bg4 {[%clk
0:00:21.8]} 21. f3 {[%clk 0:01:12.1]} 21... exf3 {[%clk 0:00:20.4]} 22. gxf3
{[%clk 0:01:12.3]} 22... Bd7 {[%clk 0:00:20.4]} 23. Qb3 {[%clk 0:01:04.6]} 23...
Nd5 {[%clk 0:00:19.8]} 24. Nxd5 {[%clk 0:01:03.8]} 24... cxd5 {[%clk 0:00:19.1]}
25. Qc3+ {[%clk 0:01:02]} 25... Bc6 {[%clk 0:00:18.7]} 26. Qxa5 {[%clk
0:01:01.1]} 1-0

[Event "*** SCC Grand Prix: Titled Tuesday Blitz"]
[Site "Chess.com"]
[Date "2020.06.09"]
[Round "9"]
[White "Manukyan_Artak"]
[Black "profofchess"]
[Result "0-1"]
[WhiteElo "2303"]
[BlackElo "2444"]
[TimeControl "180+1"]
[EndTime "10:45:05 PDT"]
[Termination "profofchess won by resignation"]

1. e4 {[%clk 0:03:00.9]} 1... e6 {[%clk 0:02:58.8]} 2. d4 {[%clk 0:03:00.7]}
2... d5 {[%clk 0:02:57.7]} 3. e5 {[%clk 0:03:00.8]} 3... c5 {[%clk 0:02:57.3]}
4. c3 {[%clk 0:03:00.4]} 4... Nc6 {[%clk 0:02:57.4]} 5. Nf3 {[%clk 0:02:59.7]}
5... Nh6 {[%clk 0:02:58]} 6. a3 {[%clk 0:02:58.5]} 6... f6 {[%clk 0:02:56.7]} 7.
Bxh6 {[%clk 0:02:54.9]} 7... gxh6 {[%clk 0:02:56.3]} 8. Bb5 {[%clk 0:02:53.9]}
8... Bg7 {[%clk 0:02:55]} 9. O-O {[%clk 0:02:44.5]} 9... cxd4 {[%clk 0:02:54.2]}
10. Nxd4 {[%clk 0:02:41.7]} 10... O-O {[%clk 0:02:42.9]} 11. Nxc6 {[%clk
0:02:29.7]} 11... bxc6 {[%clk 0:02:42.8]} 12. Bxc6 {[%clk 0:02:30.6]} 12... Rb8
{[%clk 0:02:43.2]} 13. exf6 {[%clk 0:02:26.6]} 13... Qxf6 {[%clk 0:02:41.3]} 14.
b4 {[%clk 0:02:26.3]} 14... Ba6 {[%clk 0:02:35]} 15. b5 {[%clk 0:02:11.9]} 15...
Bxb5 {[%clk 0:02:33.5]} 16. Bxb5 {[%clk 0:02:12.8]} 16... Rxb5 {[%clk
0:02:33.5]} 17. Ra2 {[%clk 0:02:05.8]} 17... Rfb8 {[%clk 0:02:16.3]} 18. Nd2
{[%clk 0:02:02.1]} 18... Qxc3 {[%clk 0:02:14.6]} 19. Nf3 {[%clk 0:02:01.1]}
19... Qb3 {[%clk 0:01:55.2]} 20. Re2 {[%clk 0:01:54.7]} 20... Qxd1 {[%clk
0:01:49.7]} 21. Rxd1 {[%clk 0:01:55.6]} 21... Rb1 {[%clk 0:01:49.1]} 22. Ree1
{[%clk 0:01:52.6]} 22... Rxd1 {[%clk 0:01:48.4]} 23. Rxd1 {[%clk 0:01:53.5]}
23... Rb3 {[%clk 0:01:44.1]} 24. Re1 {[%clk 0:01:52.3]} 24... Rxa3 {[%clk
0:01:39.3]} 25. Rxe6 {[%clk 0:01:51.1]} 25... Ra1+ {[%clk 0:01:39.2]} 26. Re1
{[%clk 0:01:50.9]} 26... a5 {[%clk 0:01:35.3]} 27. Rxa1 {[%clk 0:01:46.6]} 27...
Bxa1 {[%clk 0:01:36.2]} 28. Ne1 {[%clk 0:01:34.1]} 28... a4 {[%clk 0:01:31]} 29.
Nc2 {[%clk 0:01:33.4]} 29... Bb2 {[%clk 0:01:28.9]} 30. Kf1 {[%clk 0:01:31.9]}
30... Kf7 {[%clk 0:01:14.5]} 31. Ke2 {[%clk 0:01:23.4]} 31... Ke6 {[%clk
0:01:07.9]} 32. g4 {[%clk 0:01:22.4]} 32... Ke5 {[%clk 0:01:03.3]} 33. h3 {[%clk
0:01:14.8]} 33... Kf4 {[%clk 0:00:53.4]} 34. Nb4 {[%clk 0:01:13.6]} 34... Ke4
{[%clk 0:00:50.3]} 35. f3+ {[%clk 0:01:11.2]} 35... Kd4 {[%clk 0:00:48.8]} 36.
f4 {[%clk 0:01:01.5]} 36... Kc4 {[%clk 0:00:47.9]} 37. Nc2 {[%clk 0:00:57.1]}
37... a3 {[%clk 0:00:46.3]} 0-1

[Event "*** SCC Grand Prix: Titled Tuesday Blitz"]
[Site "Chess.com"]
[Date "2020.06.09"]
[Round "9"]
[White "OhanyanEminChess"]
[Black "anon569"]
[Result "1-0"]
[WhiteElo "2438"]
[BlackElo "2291"]
[TimeControl "180+1"]
[EndTime "10:45:06 PDT"]
[Termination "OhanyanEminChess won by resignation"]

1. e4 {[%clk 0:03:00.9]} 1... c5 {[%clk 0:02:58.4]} 2. Nf3 {[%clk 0:03:00.3]}
2... d6 {[%clk 0:02:57.2]} 3. d4 {[%clk 0:03:00.4]} 3... cxd4 {[%clk 0:02:56.7]}
4. Nxd4 {[%clk 0:03:01.3]} 4... Nf6 {[%clk 0:02:55.5]} 5. Nc3 {[%clk 0:03:01.6]}
5... a6 {[%clk 0:02:55.1]} 6. Bc4 {[%clk 0:03:01.6]} 6... Qc7 {[%clk 0:02:53.3]}
7. Bb3 {[%clk 0:02:53.7]} 7... e6 {[%clk 0:02:52.9]} 8. f4 {[%clk 0:02:52.6]}
8... Nbd7 {[%clk 0:02:44.2]} 9. f5 {[%clk 0:02:47.7]} 9... Nc5 {[%clk
0:02:37.1]} 10. fxe6 {[%clk 0:02:43]} 10... fxe6 {[%clk 0:02:38]} 11. O-O {[%clk
0:02:40.3]} 11... Be7 {[%clk 0:02:34.4]} 12. Bg5 {[%clk 0:02:33.8]} 12... Nxb3
{[%clk 0:02:30.4]} 13. axb3 {[%clk 0:02:32.1]} 13... O-O {[%clk 0:02:30]} 14.
Qd3 {[%clk 0:02:29]} 14... Bd7 {[%clk 0:02:27.1]} 15. Qh3 {[%clk 0:02:17.8]}
15... g6 {[%clk 0:01:48.6]} 16. Nxe6 {[%clk 0:01:51.9]} 16... Qc8 {[%clk
0:01:46]} 17. Nd5 {[%clk 0:01:50.6]} 17... Nxd5 {[%clk 0:01:38.3]} 18. Rxf8+
{[%clk 0:01:43.6]} 18... Qxf8 {[%clk 0:01:18.5]} 19. Bh6 {[%clk 0:01:41.5]}
19... Qf6 {[%clk 0:00:51.2]} 20. exd5 {[%clk 0:01:40.4]} 20... Qxb2 {[%clk
0:00:51.2]} 21. Rf1 {[%clk 0:01:37.4]} 21... Qxc2 {[%clk 0:00:13.4]} 22. Qf3
{[%clk 0:01:35.8]} 22... Bxe6 {[%clk 0:00:13.4]} 23. dxe6 {[%clk 0:01:35.5]}
23... Qf5 {[%clk 0:00:13.1]} 24. Qxb7 {[%clk 0:01:30.8]} 24... Qc5+ {[%clk
0:00:12.5]} 25. Kh1 {[%clk 0:01:30.2]} 25... Re8 {[%clk 0:00:09.4]} 26. Qd7
{[%clk 0:01:28.8]} 26... Qc8 {[%clk 0:00:08.7]} 27. Re1 {[%clk 0:01:23.2]} 27...
Bf6 {[%clk 0:00:03.8]} 28. Qf7+ {[%clk 0:01:22.7]} 1-0

[Event "*** SCC Grand Prix: Titled Tuesday Blitz"]
[Site "Chess.com"]
[Date "2020.06.09"]
[Round "9"]
[White "2346PL"]
[Black "Mbneu"]
[Result "1-0"]
[WhiteElo "2426"]
[BlackElo "2239"]
[TimeControl "180+1"]
[EndTime "10:45:08 PDT"]
[Termination "2346PL won by resignation"]

1. d4 {[%clk 0:03:00.9]} 1... Nf6 {[%clk 0:02:58.9]} 2. Bg5 {[%clk 0:03:00.9]}
2... c5 {[%clk 0:02:51.8]} 3. d5 {[%clk 0:02:58.6]} 3... e6 {[%clk 0:02:49.8]}
4. Nc3 {[%clk 0:02:57.7]} 4... e5 {[%clk 0:02:46.6]} 5. d6 {[%clk 0:02:53.1]}
5... Qa5 {[%clk 0:02:39.8]} 6. Bxf6 {[%clk 0:02:50.6]} 6... gxf6 {[%clk
0:02:38.7]} 7. e4 {[%clk 0:02:44.4]} 7... Nc6 {[%clk 0:02:32.3]} 8. Bc4 {[%clk
0:02:41.2]} 8... Bg7 {[%clk 0:02:16]} 9. Ne2 {[%clk 0:02:35.1]} 9... O-O {[%clk
0:02:14.1]} 10. O-O {[%clk 0:02:35.2]} 10... Nd4 {[%clk 0:02:05.5]} 11. Nd5
{[%clk 0:02:31.2]} 11... b5 {[%clk 0:01:58.8]} 12. Ne7+ {[%clk 0:02:26.3]} 12...
Kh8 {[%clk 0:01:57.6]} 13. Bd5 {[%clk 0:02:27.2]} 13... Rb8 {[%clk 0:01:53.7]}
14. c3 {[%clk 0:02:18.7]} 14... Ne6 {[%clk 0:01:39.3]} 15. f4 {[%clk 0:02:14]}
15... c4 {[%clk 0:01:15.6]} 16. Nf5 {[%clk 0:01:59.4]} 16... Rg8 {[%clk
0:01:12.9]} 17. Qe1 {[%clk 0:01:46.3]} 17... Bf8 {[%clk 0:01:03.5]} 18. Qh4
{[%clk 0:01:42.6]} 18... Rg6 {[%clk 0:01:02.6]} 19. Ne7 {[%clk 0:01:38]} 19...
Qb6+ {[%clk 0:00:19.4]} 20. Kh1 {[%clk 0:01:36.6]} 20... Qxd6 {[%clk 0:00:19.6]}
21. Nxg6+ {[%clk 0:01:36.2]} 21... fxg6 {[%clk 0:00:17.7]} 22. Qxf6+ {[%clk
0:01:24.1]} 22... Bg7 {[%clk 0:00:18.1]} 23. fxe5 {[%clk 0:01:24.4]} 23... Qxe5
{[%clk 0:00:13.8]} 24. Qe7 {[%clk 0:01:12.7]} 24... Ba6 {[%clk 0:00:11.8]} 25.
Rf7 {[%clk 0:01:07.4]} 25... Nc5 {[%clk 0:00:08.6]} 26. Qxc5 {[%clk 0:01:02.3]}
1-0

[Event "*** SCC Grand Prix: Titled Tuesday Blitz"]
[Site "Chess.com"]
[Date "2020.06.09"]
[Round "9"]
[White "Jadeit90"]
[Black "vanyakuba"]
[Result "0-1"]
[WhiteElo "2308"]
[BlackElo "2454"]
[TimeControl "180+1"]
[EndTime "10:45:13 PDT"]
[Termination "vanyakuba won by resignation"]

1. g3 {[%clk 0:03:00.9]} 1... f5 {[%clk 0:02:59.6]} 2. Bg2 {[%clk 0:03:01.8]}
2... e5 {[%clk 0:02:59.7]} 3. Nf3 {[%clk 0:03:02.4]} 3... d6 {[%clk 0:02:58.8]}
4. d4 {[%clk 0:03:02.3]} 4... e4 {[%clk 0:02:58.3]} 5. Nfd2 {[%clk 0:03:02.7]}
5... d5 {[%clk 0:02:58.4]} 6. O-O {[%clk 0:03:03.2]} 6... Nf6 {[%clk 0:02:58.4]}
7. c4 {[%clk 0:03:03.7]} 7... c6 {[%clk 0:02:58.4]} 8. Nc3 {[%clk 0:03:04.2]}
8... Be7 {[%clk 0:02:57.4]} 9. cxd5 {[%clk 0:03:04.5]} 9... cxd5 {[%clk
0:02:55.8]} 10. f3 {[%clk 0:03:04.9]} 10... Nc6 {[%clk 0:02:54.9]} 11. fxe4
{[%clk 0:03:04.9]} 11... fxe4 {[%clk 0:02:37.9]} 12. e3 {[%clk 0:03:04.1]} 12...
Bg4 {[%clk 0:02:36.8]} 13. Qb3 {[%clk 0:03:03.6]} 13... Qd7 {[%clk 0:02:37.1]}
14. a4 {[%clk 0:02:51]} 14... Nb4 {[%clk 0:02:15.6]} 15. a5 {[%clk 0:02:09.2]}
15... Rc8 {[%clk 0:01:59.9]} 16. Na2 {[%clk 0:01:42.9]} 16... Nd3 {[%clk
0:01:57.8]} 17. Nc3 {[%clk 0:01:42.7]} 17... Be6 {[%clk 0:01:20.4]} 18. Qd1
{[%clk 0:01:34.2]} 18... O-O {[%clk 0:01:17.7]} 19. Nb3 {[%clk 0:01:34.3]} 19...
Bg4 {[%clk 0:01:08]} 20. Qd2 {[%clk 0:01:33.7]} 20... Kh8 {[%clk 0:01:04.5]} 21.
Na4 {[%clk 0:01:29.8]} 21... Bb4 {[%clk 0:01:02.7]} 22. Nc3 {[%clk 0:01:27.1]}
22... Rc7 {[%clk 0:00:46.9]} 23. Qc2 {[%clk 0:01:21.1]} 23... Rfc8 {[%clk
0:00:45.2]} 24. Bd2 {[%clk 0:01:21.4]} 24... Bh3 {[%clk 0:00:34.9]} 25. a6
{[%clk 0:01:15.8]} 25... Bxg2 {[%clk 0:00:29.9]} 26. Kxg2 {[%clk 0:01:15.7]}
26... b6 {[%clk 0:00:25.3]} 27. Nc1 {[%clk 0:01:14.8]} 27... Nxb2 {[%clk
0:00:15.2]} 28. Qxb2 {[%clk 0:01:14.8]} 28... Bxc3 {[%clk 0:00:15.6]} 29. Bxc3
{[%clk 0:01:15.7]} 29... Rxc3 {[%clk 0:00:16.3]} 30. Ra2 {[%clk 0:01:15.6]}
30... Qg4 {[%clk 0:00:11.8]} 31. Qf2 {[%clk 0:01:14.7]} 31... Rxc1 {[%clk
0:00:10.5]} 0-1